fUST/lending_fUST_20250725
["ID","MTS","AMOUNT","RATE_DAILY","PERIOD"]
[374673550,1753408237979,-460.0,0.00017506,2]
[374673551,1753408237988,-460.0,0.00017506,2]
[374673552,1753408237998,-460.0,0.00017506,2]
[374673553,1753408238007,-460.0,0.00017506,2]
[374673554,1753408238017,-151.59482527,0.00017506,2]
[374673555,1753408238026,-460.0,0.00017506,2]
[374673556,1753408238036,-460.0,0.00017506,2]
[374673557,1753408238045,-460.0,0.00017506,2]
[374673558,1753408238055,-1051.43164023,0.00017506,2]
[374673559,1753408238065,-460.0,0.00017506,2]
[374673560,1753408238074,-461.66810739,0.00017506,2]
[374673561,1753408238083,-462.02273382,0.00017506,2]
[374673562,1753408238093,-460.0,0.00017506,2]
[374673563,1753408238102,-464.06747933,0.00017506,2]
[374673564,1753408238111,-461.16354695,0.00017506,2]
[374673565,1753408238121,-463.46932061,0.00017506,2]
[374673566,1753408238131,-462.35679602,0.00017506,2]
[374673567,1753408238140,-461.20701969,0.00017506,2]
[374673568,1753408238149,-460.0,0.00017506,2]
[374673569,1753408238159,-466.3193553,0.00017506,2]
[374673570,1753408238168,-463.11836538,0.00017506,2]
[374673571,1753408238181,-465.3651627,0.00017506,2]
[374673572,1753408238190,-461.51014032,0.00017506,2]
[374673573,1753408238199,-461.94036111,0.00017506,2]
[374673574,1753408238208,-460.0,0.00017506,2]
[374673575,1753408238218,-460.0,0.00017506,2]
[374673576,1753408238227,-460.0,0.00017506,2]
[374673577,1753408238237,-460.90489349,0.00017506,2]
[374673578,1753408238246,-476.94841739,0.00017506,2]
[374673579,1753408238256,-460.0,0.00017506,2]
[374673580,1753408238265,-460.0,0.00017506,2]
[374673581,1753408238275,-665.84,0.00017506,2]
[374673582,1753408238284,-599.83,0.00017506,2]
[374673583,1753408238294,-548.76,0.00017506,2]
[374673584,1753408238304,-464.98355598,0.00017506,2]
[374673585,1753408238315,-460.0,0.00017506,2]
[374673586,1753408238324,-911.75,0.00017506,2]
[374673587,1753408238334,-460.0,0.00017506,2]
[374673588,1753408238343,-463.88752355,0.00017506,2]
[374673589,1753408238352,-465.38133082,0.00017506,2]
[374673590,1753408238362,-1775.27,0.00017506,2]
[374673591,1753408238371,-517.84278321,0.00017506,2]
[374673592,1753408238380,-470.75313788,0.00017506,2]
[374673593,1753408238390,-460.0,0.00017506,2]
[374673594,1753408238399,-465.0821124,0.00017506,2]
[374673595,1753408238409,-460.0,0.00017506,2]
[374673596,1753408238418,-460.0,0.00017506,2]
[374673597,1753408238427,-465.57702629,0.00017506,2]
[374673598,1753408238438,-3979.73,0.00017506,2]
[374673599,1753408238447,-509.76,0.00017506,2]
[374673600,1753408238456,-462.07166912,0.00017506,2]
[374673601,1753408238466,-852.29,0.00017506,2]
[374673602,1753408238475,-5752.3,0.00017506,2]
[374673603,1753408238485,-460.0,0.00017506,2]
[374673604,1753408238494,-510.95,0.00017506,2]
[374673605,1753408238503,-460.0,0.00017506,2]
[374673606,1753408238513,-460.0,0.00017506,2]
[374673607,1753408238522,-460.0,0.00017506,2]
[374673608,1753408238532,-633.93,0.00017506,2]
[374673609,1753408238541,-691.68,0.00017506,2]
[374673610,1753408238550,-464.52651234,0.00017506,2]
[374673611,1753408238561,-1117.81,0.00017506,2]
[374673612,1753408238570,-460.0,0.00017506,2]
[374673613,1753408238580,-3516.8,0.00017506,2]
[374673614,1753408238589,-463.36553006,0.00017506,2]
[374673615,1753408238598,-460.0,0.00017506,2]
[374673616,1753408238609,-460.0,0.00017506,2]
[374673617,1753408238619,-460.0,0.00017506,2]
[374673618,1753408238629,-547.49,0.00017506,2]
[374673619,1753408238640,-465.78594118,0.00017506,2]
[374673620,1753408238650,-835.33,0.00017506,2]
[374673621,1753408238659,-460.0,0.00017506,2]
[374673622,1753408238669,-2155.89,0.00017506,2]
[374673623,1753408238678,-460.0,0.00017506,2]
[374673624,1753408238687,-1892.79,0.00017506,2]
[374673625,1753408238697,-466.2037888,0.00017506,2]
[374673626,1753408238706,-500.0,0.00017506,2]
[374673627,1753408238715,-460.0,0.00017506,2]
[374673628,1753408238725,-500.0,0.00017506,2]
[374673629,1753408238734,-500.0,0.00017506,2]
[374673630,1753408238743,-464.42781812,0.00017506,2]
[374673631,1753408238752,-460.0,0.00017506,2]
[374673632,1753408238761,-461.78639435,0.00017506,2]
[374673633,1753408238774,-808.58,0.00017506,2]
[374673634,1753408238783,-460.0,0.00017506,2]
[374673635,1753408238792,-460.0,0.00017506,2]
[374673636,1753408238801,-460.0,0.00017506,2]
[374673637,1753408238813,-460.0,0.00017506,2]
[374673638,1753408238824,-460.0,0.00017506,2]
[374673639,1753408238833,-460.0,0.00017506,2]
[374673640,1753408238844,-766.09,0.00017506,2]
[374673641,1753408238853,-460.0,0.00017506,2]
[374673642,1753408238863,-465.8570841,0.00017506,2]
[374673643,1753408238873,-460.0,0.00017506,2]
[374673644,1753408238883,-460.0,0.00017506,2]
[374673645,1753408238893,-468.56851437,0.00017506,2]
[374673646,1753408238903,-500.0,0.00017508,2]
[374673647,1753408238912,-500.0,0.00017508,2]
[374673648,1753408238922,-460.0,0.00017509,2]
[374673649,1753408238932,-460.0,0.00017509,2]
[374673650,1753408238942,-460.0,0.00017509,2]
[374673651,1753408238952,-461.18410579,0.00017509,2]
[374673653,1753408238962,-532.44758622,0.00017509,2]
[374673654,1753408238971,-460.0,0.00017509,2]
[374673655,1753408238981,-460.0,0.00017509,2]
[374673656,1753408238991,-460.0,0.00017509,2]
[374673658,1753408239001,-461.28945432,0.00017509,2]
[374673660,1753408239011,-460.0,0.00017509,2]
[374673662,1753408239020,-460.0,0.00017509,2]
[374673664,1753408239030,-461.26884382,0.00017509,2]
[374673666,1753408239039,-460.0,0.00017509,2]
[374673668,1753408239049,-341.43701561,0.00017509,2]
[374673669,1753408239060,-460.0,0.00017509,2]
[374673670,1753408239069,-466.56837024,0.00017509,2]
[374673672,1753408239079,-460.0,0.00017509,2]
[374673674,1753408239089,-500.0,0.00017509,2]
[374673677,1753408239098,-500.0,0.00017509,2]
[374673679,1753408239109,-500.0,0.00017509,2]
[374673681,1753408239119,-460.0,0.00017509,2]
[374673683,1753408239128,-460.0,0.00017509,2]
[374673685,1753408239138,-460.0,0.00017509,2]
[374673687,1753408239148,-460.0,0.00017509,2]
[374673688,1753408239157,-465.8268507,0.00017509,2]
[374673690,1753408239167,-460.0,0.00017509,2]
[374673693,1753408239177,-460.0,0.00017509,2]
[374673695,1753408239186,-460.0,0.00017509,2]
[374673697,1753408239196,-460.61432153,0.00017509,2]
[374673699,1753408239205,-463.14578624,0.00017509,2]
[374673701,1753408239215,-460.0,0.00017509,2]
[374673703,1753408239224,-460.0,0.00017509,2]
[374673705,1753408239234,-460.2604231,0.00017509,2]
[374673707,1753408239244,-460.0,0.00017509,2]
[374673709,1753408239253,-460.0,0.00017509,2]
[374673711,1753408239263,-460.0,0.00017509,2]
[374673713,1753408239274,-460.0,0.00017509,2]
[374673715,1753408239283,-460.0,0.00017509,2]
[374673717,1753408239293,-460.0,0.00017509,2]
[374673719,1753408239303,-460.0,0.00017509,2]
[374673721,1753408239315,-464.11882021,0.00017509,2]
[374673723,1753408239324,-460.0,0.00017509,2]
[374673725,1753408239334,-461.72268286,0.00017509,2]
[374673727,1753408239344,-460.0,0.00017509,2]
[374673729,1753408239354,-461.05562577,0.00017509,2]
[374673733,1753408239363,-460.8245168,0.00017509,2]
[374673735,1753408239374,-244.9121723,0.00017509,2]
[374673737,1753408239384,-656.87,0.00017509,2]
[374673740,1753408239394,-460.0,0.00017509,2]
[374673743,1753408239403,-550.87672677,0.00017509,2]
[374673745,1753408239412,-460.0,0.00017509,2]
[374673747,1753408239422,-746.65,0.00017509,2]
[374673749,1753408239431,-460.0,0.00017509,2]
[374673751,1753408239441,-460.0,0.00017509,2]
[374673753,1753408239452,-460.0,0.00017509,2]
[374673755,1753408239463,-460.0,0.00017509,2]
[374673757,1753408239472,-460.0,0.00017509,2]
[374673759,1753408239482,-460.0,0.00017509,2]
[374673761,1753408239491,-675.53,0.00017509,2]
[374673763,1753408239501,-468.43,0.00017509,2]
[374673765,1753408239510,-460.0,0.00017509,2]
[374673767,1753408239520,-887.29,0.00017509,2]
[374673769,1753408239529,-460.0,0.00017509,2]
[374673771,1753408239539,-460.0,0.00017509,2]
[374673773,1753408239549,-460.0,0.00017509,2]
[374673775,1753408239561,-460.0,0.00017509,2]
[374673778,1753408239571,-962.11,0.00017509,2]
[374673779,1753408239581,-466.94598897,0.00017509,2]
[374673782,1753408239590,-460.0,0.00017509,2]
[374673784,1753408239600,-460.0,0.00017509,2]
[374673786,1753408239610,-464.70645455,0.00017509,2]
[374673788,1753408239620,-460.0,0.00017509,2]
[374673790,1753408239631,-460.0,0.00017509,2]
[374673792,1753408239642,-460.0,0.00017509,2]
[374673794,1753408239651,-460.0,0.00017509,2]
[374673796,1753408239661,-460.0,0.00017509,2]
[374673798,1753408239670,-443.8601687,0.00017509,2]
[374673800,1753408239680,-461.52806698,0.00017509,2]
[374673802,1753408239690,-465.72761824,0.00017509,2]
[374673804,1753408239700,-460.0,0.00017509,2]
[374673806,1753408239709,-463.81897047,0.00017509,2]
[374673809,1753408239719,-460.0,0.00017509,2]
[374673811,1753408239729,-462.61613761,0.00017509,2]
[374673813,1753408239738,-2352.83,0.00017509,2]
[374673815,1753408239747,-463.15886522,0.00017509,2]
[374673817,1753408239757,-460.55310997,0.00017509,2]
[374673819,1753408239769,-460.0,0.00017509,2]
[374673821,1753408239778,-545.40408503,0.00017509,2]
[374673823,1753408239788,-461.68638327,0.00017509,2]
[374673825,1753408239797,-460.0,0.00017509,2]
[374673827,1753408239809,-461.11006489,0.00017509,2]
[374673829,1753408239819,-973.22,0.00017509,2]
[374673831,1753408239830,-460.0,0.00017509,2]
[374673833,1753408239840,-3637.55,0.00017509,2]
[374673835,1753408239850,-719.25,0.00017509,2]
[374673837,1753408239859,-460.0,0.00017509,2]
[374673839,1753408239869,-818.87,0.00017509,2]
[374673841,1753408239878,-1080.43,0.00017509,2]
[374673843,1753408239888,-460.97118339,0.00017509,2]
[374673845,1753408239897,-866.9,0.00017509,2]
[374673847,1753408239907,-460.0,0.00017509,2]
[374673849,1753408239917,-460.0,0.00017509,2]
[374673851,1753408239927,-461.65904699,0.00017509,2]
[374673853,1753408239937,-502.83,0.00017509,2]
[374673855,1753408239946,-553.79892091,0.00017509,2]
[374673857,1753408239956,-1888.51,0.00017509,2]
[374673859,1753408239965,-461.48785101,0.00017509,2]
[374673861,1753408239975,-2448.2,0.00017509,2]
[374673863,1753408239984,-847.05,0.00017509,2]
[374673866,1753408239995,-460.0,0.00017509,2]
[374673868,1753408240004,-624.9,0.00017509,2]
[374673870,1753408240014,-460.0,0.00017509,2]
[374673872,1753408240024,-772.06,0.00017509,2]
[374673875,1753408240033,-460.0,0.00017509,2]
[374673877,1753408240042,-501.93,0.00017509,2]
[374673879,1753408240052,-460.0,0.00017509,2]
[374673881,1753408240064,-460.745166,0.00017509,2]
[374673883,1753408240075,-460.0,0.00017509,2]
[374673885,1753408240084,-460.0,0.00017509,2]
[374673887,1753408240093,-2971.11,0.00017509,2]
[374673889,1753408240103,-885.65,0.00017509,2]
[374673891,1753408240112,-460.0,0.00017509,2]
[374673893,1753408240121,-461.83903534,0.00017509,2]
[374673895,1753408240131,-2777.19,0.00017509,2]
[374673897,1753408240140,-460.64596109,0.00017509,2]
[374673899,1753408240150,-462.56827979,0.00017509,2]
[374673901,1753408240159,-460.0,0.00017509,2]
[374673903,1753408240169,-460.0,0.00017509,2]
[374673905,1753408240178,-1668.27,0.00017509,2]
[374673907,1753408240188,-3068.36,0.00017509,2]
[374673909,1753408240198,-1213.36,0.00017509,2]
[374673911,1753408240207,-462.21134424,0.00017509,2]
[374673913,1753408240217,-460.0,0.00017509,2]
[374673915,1753408240226,-460.0,0.00017509,2]
[374673917,1753408240236,-461.9334455,0.00017509,2]
[374673919,1753408240246,-898.69,0.00017509,2]
[374673920,1753408240256,-1962.28,0.00017509,2]
[374673921,1753408240266,-741.39,0.00017509,2]
[374673922,1753408240276,-460.0,0.00017509,2]
[374673923,1753408240285,-460.0,0.00017509,2]
[374673924,1753408240295,-1591.2,0.00017509,2]
[374673925,1753408240305,-463.72874006,0.00017509,2]
[374673926,1753408240316,-481.54,0.00017509,2]
[374673928,1753408240326,-500.0,0.00017511,2]
[374673930,1753408240336,-500.0,0.00017511,2]
[374673932,1753408240346,-462.02714046,0.00017512,2]
[374673934,1753408240355,-511.74345082,0.00017512,2]
[374673936,1753408240364,-462.21088486,0.00017512,2]
[374673938,1753408240374,-460.0,0.00017512,2]
[374673941,1753408240384,-460.0,0.00017512,2]
[374673943,1753408240394,-633.11,0.00017512,2]
[374673945,1753408240404,-463.89135057,0.00017512,2]
[374673947,1753408240414,-460.0,0.00017512,2]
[374673949,1753408240424,-527.56839561,0.00017512,2]
[374673951,1753408240433,-460.0,0.00017512,2]
[374673953,1753408240442,-500.0,0.00017512,2]
[374673955,1753408240452,-500.0,0.00017512,2]
[374673957,1753408240461,-500.0,0.00017512,2]
[374673958,1753408240470,-460.0,0.00017512,2]
[374673960,1753408240480,-460.0,0.00017512,2]
[374673961,1753408240490,-462.99,0.00017512,2]
[374673963,1753408240500,-611.11,0.00017512,2]
[374673966,1753408240510,-460.0,0.00017512,2]
[374673968,1753408240519,-462.8941791,0.00017512,2]
[374673969,1753408240529,-460.0,0.00017512,2]
[374673971,1753408240540,-547.85,0.00017512,2]
[374673974,1753408240549,-460.0,0.00017512,2]
[374673976,1753408240563,-462.04031923,0.00017512,2]
[374673978,1753408240572,-462.1,0.00017512,2]
[374673980,1753408240583,-460.0,0.00017512,2]
[374673982,1753408240592,-460.0,0.00017512,2]
[374673983,1753408240602,-462.2989832,0.00017512,2]
[374673984,1753408240612,-554.86392147,0.00017512,2]
[374673985,1753408240622,-460.0,0.00017512,2]
[374673986,1753408240632,-500.0,0.00017512,2]
[374673987,1753408240641,-500.0,0.00017512,2]
[374673988,1753408240651,-500.0,0.00017512,2]
[374673989,1753408240661,-564.2,0.00017512,2]
[374673990,1753408240671,-460.0,0.00017512,2]
[374673991,1753408240680,-460.0,0.00017512,2]
[374673992,1753408240690,-462.2915928,0.00017512,2]
[374673993,1753408240699,-460.0,0.00017513,2]
[374673994,1753408240710,-579.73412199,0.00017513,2]
[374673995,1753408240719,-460.0,0.00017513,2]
[374673996,1753408240729,-460.0,0.00017513,2]
[374673997,1753408240739,-494.34,0.00017513,2]
[374673998,1753408240748,-463.13101896,0.00017513,2]
[374673999,1753408240759,-588.10170875,0.00017513,2]
[374674000,1753408240771,-460.0,0.00017513,2]
[374674001,1753408240781,-463.798696,0.00017513,2]
[374674002,1753408240790,-462.05883309,0.00017513,2]
[374674003,1753408240800,-460.0,0.00017513,2]
[374674004,1753408240811,-463.96062009,0.00017513,2]
[374674005,1753408240821,-463.57570775,0.00017513,2]
[374674006,1753408240832,-460.0,0.00017513,2]
[374674007,1753408240842,-460.0,0.00017513,2]
[374674008,1753408240852,-460.0,0.00017513,2]
[374674009,1753408240861,-460.0,0.00017513,2]
[374674010,1753408240871,-460.0,0.00017513,2]
[374674011,1753408240882,-464.65588408,0.00017513,2]
[374674012,1753408240891,-462.16200129,0.00017513,2]
[374674013,1753408240901,-460.0,0.00017513,2]
[374674014,1753408240911,-460.0,0.00017513,2]
[374674015,1753408240920,-460.0,0.00017513,2]
[374674016,1753408240930,-461.87664825,0.00017513,2]
[374674017,1753408240940,-638.39,0.00017513,2]
[374674018,1753408240950,-460.0,0.00017513,2]
[374674019,1753408240959,-460.0,0.00017513,2]
[374674020,1753408240970,-461.08143131,0.00017513,2]
[374674021,1753408240980,-460.0,0.00017513,2]
[374674022,1753408240989,-460.0,0.00017513,2]
[374674026,1753408240999,-465.01322762,0.00017513,2]
[374674028,1753408241159,-460.0,0.00017513,2]
[374674029,1753408241169,-468.50381225,0.00017513,2]
[374674030,1753408241179,-460.0,0.00017513,2]
[374674031,1753408241188,-460.0,0.00017513,2]
[374674032,1753408241198,-744.57,0.00017513,2]
[374674033,1753408241207,-500.0,0.00017564,2]
[374674034,1753408241217,-500.0,0.00017566,2]
[374674036,1753408241226,-500.0,0.00017566,2]
[374674038,1753408241235,-500.0,0.00017566,2]
[374674040,1753408241244,-467.12342769,0.00017567,2]
[374674042,1753408241254,-460.0,0.00017567,2]
[374674044,1753408241263,-463.85548708,0.00017567,2]
[374674046,1753408241273,-463.44729959,0.00017567,2]
[374674048,1753408241282,-460.0,0.00017567,2]
[374674050,1753408241292,-460.0,0.00017567,2]
[374674052,1753408241301,-463.53835041,0.00017567,2]
[374674054,1753408241313,-460.0,0.00017567,2]
[374674056,1753408241323,-460.0,0.00017567,2]
[374674058,1753408241333,-460.0,0.00017567,2]
[374674060,1753408241342,-460.0,0.00017567,2]
[374674062,1753408241351,-464.91665648,0.00017567,2]
[374674064,1753408241360,-462.88324077,0.00017567,2]
[374674065,1753408241369,-463.27848797,0.00017567,2]
[374674068,1753408241378,-500.0,0.0001757,2]
[374674070,1753408241388,-500.0,0.0001757,2]
[374674072,1753408241398,-500.0,0.0001757,2]
[374674074,1753408241407,-500.0,0.0001757,2]
[374674076,1753408241416,-500.0,0.0001757,2]
[374674078,1753408241426,-460.0,0.00017571,2]
[374674080,1753408241435,-735.46,0.00017571,2]
[374674082,1753408241444,-460.0,0.00017571,2]
[374674084,1753408241453,-462.68331186,0.00017571,2]
[374674086,1753408241463,-460.0,0.00017571,2]
[374674088,1753408241472,-464.69538982,0.00017571,2]
[374674090,1753408241482,-461.78811039,0.00017571,2]
[374674092,1753408241491,-460.0,0.00017571,2]
[374674094,1753408241500,-460.0,0.00017571,2]
[374674096,1753408241510,-925.71885171,0.00017683,2]
[374674098,1753408241519,-2577.87046079,0.00017683,2]
[374674100,1753408241529,-500.0,0.00017713,2]
[374674102,1753408241538,-500.0,0.00017715,2]
[374674104,1753408241547,-554.99614703,0.00017715,2]
[374674106,1753408241560,-276.63767927,0.00017773,2]
[374674108,1753408241570,-506.16894527,0.00017773,2]
[374674110,1753408241579,-500.0,0.00017773,2]
[374674112,1753408241588,-500.0,0.00017773,2]
[374674114,1753408241598,-462.86072961,0.00017777,2]
[374674116,1753408241607,-321.74331717,0.00017777,2]
[374674117,1753408241616,-460.0,0.00017777,2]
[374674120,1753408241626,-460.0,0.00017777,2]
[374674122,1753408241638,-460.2508139,0.00017777,2]
[374674124,1753408241648,-460.0,0.00017778,2]
[374674126,1753408241657,-461.6872002,0.00017778,2]
[374674128,1753408241667,-461.82354481,0.00017778,2]
[374674130,1753408241676,-464.44898875,0.00017778,2]
[374674132,1753408241686,-508.81,0.00017778,2]
[374674134,1753408241695,-563.78,0.00017778,2]
[374674136,1753408241704,-460.0,0.00017778,2]
[374674138,1753408241714,-496.45,0.00017778,2]
[374674140,1753408241723,-460.0,0.0001778,2]
[374674142,1753408241732,-460.0,0.0001778,2]
[374674144,1753408241742,-460.0,0.0001778,2]
[374674146,1753408241751,-460.0,0.0001778,2]
[374674148,1753408241763,-460.0,0.0001778,2]
[374674150,1753408241773,-460.0,0.0001778,2]
[374674152,1753408241782,-460.0,0.0001778,2]
[374674154,1753408241793,-464.7407641,0.0001778,2]
[374674156,1753408241805,-460.0,0.0001778,2]
[374674159,1753408241818,-460.0,0.0001778,2]
[374674161,1753408241827,-460.0,0.0001778,2]
[374674163,1753408241837,-464.73480318,0.0001778,2]
[374674165,1753408241848,-461.61202923,0.0001778,2]
[374674167,1753408241858,-665.84,0.0001778,2]
[374674169,1753408241868,-599.83,0.0001778,2]
[374674171,1753408241878,-548.76,0.0001778,2]
[374674173,1753408241887,-460.0,0.0001778,2]
[374674175,1753408241896,-911.75,0.0001778,2]
[374674177,1753408241905,-460.0,0.0001778,2]
[374674179,1753408241916,-1775.27,0.0001778,2]
[374674181,1753408241926,-460.0,0.0001778,2]
[374674183,1753408241935,-460.0,0.0001778,2]
[374674185,1753408241944,-465.10068613,0.0001778,2]
[374674187,1753408241953,-3979.73,0.0001778,2]
[374674189,1753408241963,-509.76,0.0001778,2]
[374674191,1753408241972,-852.29,0.0001778,2]
[374674193,1753408241982,-5752.3,0.0001778,2]
[374674195,1753408241991,-460.0,0.0001778,2]
[374674197,1753408242000,-510.95,0.0001778,2]
[374674199,1753408242009,-460.0,0.0001778,2]
[374674201,1753408242019,-460.0,0.0001778,2]
[374674203,1753408242028,-460.0,0.0001778,2]
[374674205,1753408242038,-633.93,0.0001778,2]
[374674207,1753408242048,-691.68,0.0001778,2]
[374674209,1753408242059,-1117.81,0.0001778,2]
[374674211,1753408242068,-460.0,0.0001778,2]
[374674213,1753408242078,-3516.8,0.0001778,2]
[374674215,1753408242087,-460.0,0.0001778,2]
[374674217,1753408242097,-460.0,0.0001778,2]
[374674219,1753408242106,-460.0,0.0001778,2]
[374674221,1753408242115,-547.49,0.0001778,2]
[374674223,1753408242125,-835.33,0.0001778,2]
[374674225,1753408242134,-460.0,0.0001778,2]
[374674227,1753408242143,-2155.89,0.0001778,2]
[374674229,1753408242152,-258.48786464,0.0001778,2]
[374674231,1753408242162,-1892.79,0.0001778,2]
[374674233,1753408242172,-467.5284099,0.0001778,2]
[374674235,1753408242182,-248.58696267,0.0001778,2]
[374674237,1753408242191,-808.58,0.0001778,2]
[374674239,1753408242200,-460.0,0.0001778,2]
[374674243,1753408242210,-460.0,0.0001778,2]
[374674246,1753408242229,-465.92086138,0.0001778,2]
[374674248,1753408242239,-460.0,0.0001778,2]
[374674251,1753408242250,-460.0,0.0001778,2]
[374674253,1753408242260,-766.09,0.0001778,2]
[374674255,1753408242270,-460.0,0.0001778,2]
[374674257,1753408242280,-460.0,0.0001778,2]
[374674259,1753408242291,-463.49513087,0.00017783,2]
[374674261,1753408242301,-599.92857316,0.00017783,2]
[374674263,1753408242312,-460.0,0.00017783,2]
[374674265,1753408242322,-560.27666211,0.00017783,2]
[374674267,1753408242333,-414.27512553,0.00017783,2]
[374674269,1753408242343,-460.0,0.00017783,2]
[374674271,1753408242352,-460.0,0.00017783,2]
[374674273,1753408242362,-460.0,0.00017783,2]
[374674275,1753408242374,-460.0,0.00017783,2]
[374674277,1753408242383,-460.0,0.00017783,2]
[374674280,1753408242392,-460.0,0.00017783,2]
[374674282,1753408242402,-462.94166323,0.00017783,2]
[374674284,1753408242412,-463.55165691,0.00017783,2]
[374674287,1753408242422,-460.0,0.00017783,2]
[374674289,1753408242432,-460.0,0.00017783,2]
[374674291,1753408242441,-460.0,0.00017783,2]
[374674292,1753408242451,-460.0,0.00017783,2]
[374674293,1753408242460,-460.0,0.00017783,2]
[374674294,1753408242469,-462.87696428,0.00017783,2]
[374674295,1753408242478,-321.15833953,0.00017783,2]
[374674296,1753408242488,-181.83392642,0.00017783,2]
[374674297,1753408242497,-460.0,0.00017783,2]
[374674298,1753408242506,-461.178196,0.00017783,2]
[374674299,1753408242516,-460.0,0.00017783,2]
[374674300,1753408242525,-460.0,0.00017783,2]
[374674301,1753408242534,-180.36535785,0.00017783,2]
[374674302,1753408242544,-460.0,0.00017783,2]
[374674303,1753408242553,-460.0,0.00017783,2]
[374674304,1753408242567,-462.82244201,0.00017783,2]
[374674305,1753408242577,-461.63849911,0.00017783,2]
[374674306,1753408242586,-656.87,0.00017783,2]
[374674307,1753408242596,-460.0,0.00017783,2]
[374674308,1753408242607,-460.0,0.00017783,2]
[374674309,1753408242617,-746.65,0.00017783,2]
[374674310,1753408242626,-460.0,0.00017783,2]
[374674311,1753408242636,-460.0,0.00017783,2]
[374674312,1753408242645,-460.0,0.00017783,2]
[374674313,1753408242655,-460.0,0.00017783,2]
[374674314,1753408242664,-460.0,0.00017783,2]
[374674315,1753408242674,-460.0,0.00017783,2]
[374674316,1753408242683,-675.53,0.00017783,2]
[374674317,1753408242693,-468.43,0.00017783,2]
[374674318,1753408242702,-460.0,0.00017783,2]
[374674319,1753408242711,-887.29,0.00017783,2]
[374674321,1753408242722,-460.0,0.00017783,2]
[374674322,1753408242731,-460.0,0.00017783,2]
[374674323,1753408242741,-295.95403427,0.00017783,2]
[374674324,1753408242750,-180.30824473,0.00017783,2]
[374674326,1753408242760,-962.11,0.00017783,2]
[374674328,1753408242774,-460.0,0.00017783,2]
[374674330,1753408242784,-460.0,0.00017783,2]
[374674332,1753408242794,-460.0,0.00017783,2]
[374674334,1753408242804,-460.0,0.00017783,2]
[374674336,1753408242824,-460.0,0.00017783,2]
[374674338,1753408242834,-466.23344508,0.00017783,2]
[374674340,1753408242844,-460.0,0.00017783,2]
[374674343,1753408242858,-460.0,0.00017783,2]
[374674345,1753408242868,-460.0,0.00017783,2]
[374674347,1753408242878,-2352.83,0.00017783,2]
[374674349,1753408242888,-460.0,0.00017783,2]
[374674351,1753408242898,-460.0,0.00017783,2]
[374674353,1753408242908,-973.22,0.00017783,2]
[374674355,1753408242918,-460.0,0.00017783,2]
[374674357,1753408242927,-3637.55,0.00017783,2]
[374674359,1753408242938,-719.25,0.00017783,2]
[374674361,1753408242948,-464.36002961,0.00017783,2]
[374674363,1753408242958,-818.87,0.00017783,2]
[374674365,1753408242968,-1080.43,0.00017783,2]
[374674368,1753408242977,-866.9,0.00017783,2]
[374674370,1753408242987,-460.0,0.00017783,2]
[374674372,1753408242996,-460.0,0.00017783,2]
[374674374,1753408243006,-502.83,0.00017783,2]
[374674376,1753408243015,-1888.51,0.00017783,2]
[374674378,1753408243025,-2448.2,0.00017783,2]